bitfinex-derivatives/quotes_BNBF0:USTF0_20250507
["timestamp","ask_amount","ask_price","bid_price","bid_amount"]
[1746631492800,0.993755,602.78,601.29,3.3486182]
[1746631493200,0.993755,602.77,601.29,3.3486182]
[1746631493796,0.993755,602.76,601.29,3.3486182]
[1746631494496,0.993755,602.75,601.29,3.3486182]
[1746631494702,0.993755,602.74,601.29,3.3486182]
[1746631494996,0.993755,602.73,601.29,3.3486182]
[1746631495600,0.993755,602.72,601.29,3.3486182]
[1746631496101,0.993755,602.71,601.29,3.3486182]
[1746631496400,0.993755,602.7,601.29,3.3486182]
[1746631496602,0.993755,602.69,601.29,3.3486182]
[1746631496796,0.993755,602.68,601.29,3.3486182]
[1746631496996,0.993755,602.67,601.29,3.3486182]
[1746631497301,0.993755,602.66,601.29,3.3486182]
[1746631497900,0.993755,602.65,601.29,3.3486182]
[1746631498101,0.993755,602.64,601.29,3.3486182]
[1746631498299,0.993755,602.63,601.29,3.3486182]
[1746631498497,0.993755,602.62,601.29,3.3486182]
[1746631499401,0.993755,602.61,601.29,3.3486182]
[1746631499603,0.993755,602.6,601.29,3.3486182]
[1746631503203,0.99487192,602.9,601.29,3.3486182]
[1746631503501,0.99487192,602.89,601.29,3.3486182]
[1746631503705,0.99487192,602.88,601.29,3.3486182]
[1746631504104,0.99487192,602.87,601.29,3.3486182]
[1746631504704,0.99487192,602.86,601.29,3.3486182]
[1746631505198,0.99487192,602.85,601.29,3.3486182]
[1746631505699,0.99487192,602.84,601.29,3.3486182]
[1746631505900,0.99487192,602.83,601.29,3.3486182]
[1746631506102,0.99487192,602.82,601.29,3.3486182]
[1746631506506,0.99487192,602.81,601.29,3.3486182]
[1746631507007,0.99487192,602.8,601.29,3.3486182]
[1746631507405,0.99487192,602.79,601.29,3.3486182]
[1746631508007,0.99487192,602.78,601.29,3.3486182]
[1746631508508,0.99487192,602.77,601.29,3.3486182]
[1746631509108,0.99487192,602.76,601.29,3.3486182]
[1746631509309,0.99487192,602.75,601.29,3.3486182]
[1746631510008,0.99487192,602.74,601.29,3.3486182]
[1746631510209,0.99487192,602.73,601.29,3.3486182]
[1746631510509,0.99487192,602.72,601.29,3.3486182]
[1746631511109,0.99487192,602.71,601.29,3.3486182]
[1746631511505,0.99487192,602.7,601.29,3.3486182]
[1746631512009,0.99487192,602.69,601.29,3.3486182]
[1746631512411,0.99487192,602.68,601.29,3.3486182]
[1746631512606,0.99487192,602.67,601.29,3.3486182]
[1746631513307,0.99487192,602.66,601.29,3.3486182]
[1746631513611,0.99487192,602.65,601.29,3.3486182]
[1746631514009,0.99487192,602.64,601.29,3.3486182]
[1746631514210,0.99487192,602.63,601.29,3.3486182]
[1746631514611,0.99487192,602.62,601.29,3.3486182]
[1746631515212,0.99487192,602.61,601.29,3.3486182]
[1746631515711,0.28899334,602.78,601.29,3.3486182]
[1746631515712,0.99487192,602.6,601.29,3.3486182]
[1746631516109,0.99487192,602.59,601.29,3.3486182]
[1746631516312,0.99487192,602.58,601.29,3.3486182]
[1746631516708,0.99487192,602.57,601.29,3.3486182]
[1746631517409,0.99487192,602.56,601.29,3.3486182]
[1746631517912,0.99487192,602.55,601.29,3.3486182]
[1746631518212,0.99487192,602.54,601.29,3.3486182]
[1746631518413,0.99487192,602.53,601.29,3.3486182]
[1746631519013,0.99487192,602.52,601.29,3.3486182]
[1746631519714,0.99487192,602.51,601.29,3.3486182]
[1746631519912,0.99487192,602.5,601.29,3.3486182]
[1746631520209,0.99487192,602.49,601.29,3.3486182]
[1746631520813,0.99487192,602.48,601.29,3.3486182]
[1746631521417,0.99487192,602.47,601.29,3.3486182]
[1746631521913,0.99487192,602.46,601.29,3.3486182]
[1746631522416,0.99487192,602.45,601.29,3.3486182]
[1746631522814,0.99487192,602.44,601.29,3.3486182]
[1746631523315,0.99487192,602.43,601.29,3.3486182]
[1746631524013,0.99487192,602.42,601.29,3.3486182]
[1746631524419,0.99487192,602.41,601.29,3.3486182]
[1746631525013,0.28900294,602.84,601.29,3.3486182]
[1746631525014,0.99487192,602.4,601.29,3.3486182]
[1746631525316,0.28900294,602.84,601.29,3.3486182]
[1746631525317,0.99487192,602.39,601.29,3.3486182]
[1746631525717,0.99487192,602.38,601.29,3.3486182]
[1746631526118,0.99487192,602.37,601.29,3.3486182]
[1746631526614,0.99487192,602.36,601.29,3.3486182]
[1746631527414,0.99487192,602.35,601.29,3.3486182]
[1746631527618,0.33169696,602.96,601.29,3.3486182]
[1746631527619,0.99487192,602.34,601.29,3.3486182]
[1746631528318,0.99487192,602.33,601.29,3.3486182]
[1746631528620,0.99487192,602.32,601.29,3.3486182]
[1746631528814,0.99487192,602.31,601.29,3.3486182]
[1746631529720,0.99487192,602.3,601.29,3.3486182]
[1746631530219,0.99487192,602.29,601.29,3.3486182]
[1746631530718,0.99487192,602.28,601.29,3.3486182]
[1746631531118,0.99487192,602.27,601.29,3.3486182]
[1746631531318,0.99487192,602.26,601.29,3.3486182]
[1746631531517,0.99487192,602.25,601.29,3.3486182]
[1746631531914,0.99487192,602.24,601.29,3.3486182]
[1746631532616,0.99487192,602.23,601.29,3.3486182]
[1746631533221,0.99487192,602.22,601.29,3.3486182]
[1746631533619,0.99487192,602.21,601.29,3.3486182]
[1746631534120,0.99487192,602.2,601.29,3.3486182]
[1746631534619,0.99487192,602.19,601.29,3.3486182]
[1746631535318,0.99487192,602.18,601.29,3.3486182]
[1746631535919,0.99487192,602.17,601.29,3.3486182]
[1746631536721,0.99487192,602.16,601.29,3.3486182]
[1746631537522,0.99487192,602.15,601.29,3.3486182]
[1746631538322,0.28904255,602.8,601.29,3.3486182]
[1746631538822,0.99394152,602.79,601.29,3.3486182]
[1746631539022,0.99394152,602.78,601.29,3.3486182]
[1746631539321,0.30509626,602.77,601.29,3.3486182]
[1746631539622,0.99394152,602.76,601.29,3.3486182]
[1746631539921,0.30509626,602.75,601.29,3.3486182]
[1746631540121,1.29903778,602.75,601.29,3.3486182]
[1746631540318,0.30509626,602.74,601.29,3.3486182]
[1746631540522,0.99394152,602.73,601.29,3.3486182]
[1746631540717,0.99394152,602.72,601.29,3.3486182]
[1746631541018,0.99394152,602.71,601.29,3.3486182]
[1746631541222,1.24703417,602.7,601.29,3.3486182]
[1746631541423,1.24703417,602.69,601.29,3.3486182]
[1746631541623,2.24097569,602.68,601.29,3.3486182]
[1746631541924,1.24703902,602.67,601.29,3.3486182]
[1746631542225,1.24703902,602.66,601.29,3.3486182]
[1746631542524,1.24703902,602.65,601.29,3.3486182]
[1746631542724,1.24703902,602.64,601.29,3.3486182]
[1746631542925,1.24703902,602.63,601.29,3.3486182]
[1746631543224,2.24098054,602.62,601.29,3.3486182]
[1746631543425,0.99394152,602.62,601.29,3.3486182]
[1746631543925,0.99394152,602.61,601.29,3.3486182]
[1746631544430,0.99394152,602.6,601.29,3.3486182]
[1746631544727,0.99394152,602.59,601.29,3.3486182]
[1746631545225,0.99394152,602.58,601.29,3.3486182]
[1746631545726,0.99394152,602.57,601.29,3.3486182]
[1746631546223,0.99394152,602.56,601.29,3.3486182]
[1746631546423,0.99394152,602.55,601.29,3.3486182]
[1746631546828,0.99394152,602.54,601.29,3.3486182]
[1746631547327,0.99394152,602.53,601.29,3.3486182]
[1746631547628,0.99394152,602.52,601.29,3.3486182]
[1746631548228,0.99394152,602.51,601.29,3.3486182]
[1746631548724,0.99394152,602.5,601.29,3.3486182]
[1746631549028,0.99394152,602.49,601.29,3.3486182]
[1746631549328,0.99394152,602.48,601.29,3.3486182]
[1746631549528,0.99394152,602.47,601.29,3.3486182]
[1746631550227,0.99394152,602.46,601.29,3.3486182]
[1746631550828,0.99394152,602.45,601.29,3.3486182]
[1746631551130,0.99394152,602.44,601.29,3.3486182]
[1746631551428,0.99394152,602.43,601.29,3.3486182]
[1746631551726,0.99394152,602.42,601.29,3.3486182]
[1746631552122,0.99394152,602.41,601.29,3.3486182]
[1746631552825,0.99394152,602.4,601.29,3.3486182]
[1746631553331,0.99394152,602.39,601.29,3.3486182]
[1746631553730,0.99394152,602.38,601.29,3.3486182]
[1746631554333,0.99394152,602.37,601.29,3.3486182]
[1746631554729,0.99394152,602.36,601.29,3.3486182]
[1746631555230,0.99394152,602.35,601.29,3.3486182]
[1746631556433,0.99394152,602.34,601.29,3.3486182]
[1746631556931,0.99394152,602.33,601.29,3.3486182]
[1746631557529,0.99394152,602.32,601.29,3.3486182]
[1746631557832,0.99394152,602.31,601.29,3.3486182]
[1746631558133,0.99394152,602.3,601.29,3.3486182]
[1746631558834,0.99394152,602.29,601.29,3.3486182]
[1746631559335,0.99394152,602.28,601.29,3.3486182]
[1746631559834,0.99394152,602.27,601.29,3.3486182]
[1746631560433,0.99394152,602.26,601.29,3.3486182]
[1746631560631,0.99394152,602.25,601.29,3.3486182]
[1746631561031,0.99394152,602.24,601.29,3.3486182]
[1746631561435,0.99394152,602.23,601.29,3.3486182]
[1746631562032,0.99394152,602.22,601.29,3.3486182]
[1746631562337,1.24734366,602.21,601.29,3.3486182]
[1746631562639,2.24128518,602.2,601.29,3.3486182]
[1746631562831,1.24734366,602.19,601.29,3.3486182]
[1746631563035,1.24734366,602.18,601.29,3.3486182]
[1746631563237,2.24128518,602.17,601.29,3.3486182]
[1746631563431,1.24734366,602.16,601.29,3.3486182]
[1746631563638,0.33169696,602.96,601.29,3.3486182]
[1746631563639,0.99394152,602.15,601.29,3.3486182]
[1746631563831,0.99394152,602.14,601.29,3.3486182]
[1746631564438,0.99394152,602.13,601.29,3.3486182]
[1746631565039,0.99394152,602.12,601.29,3.3486182]
[1746631565839,0.99394152,602.11,601.29,3.3486182]
[1746631566441,0.99394152,602.1,601.29,3.3486182]
[1746631566636,0.99394152,602.09,601.29,3.3486182]
[1746631566940,0.99394152,602.08,601.29,3.3486182]
[1746631567141,0.99394152,602.07,601.29,3.3486182]
[1746631567837,0.99394152,602.06,601.29,3.3486182]
[1746631568242,0.99394152,602.05,601.29,3.3486182]
[1746631568442,0.99394152,602.04,601.29,3.3486182]
[1746631568943,0.99394152,602.03,601.29,3.3486182]
[1746631569139,0.99394152,602.02,601.29,3.3486182]
[1746631569543,0.99394152,602.01,601.29,3.3486182]
[1746631570145,0.99394152,602.0,601.29,3.3486182]
[1746631570942,0.99394152,601.99,601.29,3.3486182]
[1746631571344,0.99394152,601.98,601.29,3.3486182]
[1746631571646,0.2891302,602.51,601.29,3.3486182]
[1746631571945,0.99278517,602.5,601.29,3.3486182]
[1746631572245,0.99278517,602.49,601.29,3.3486182]
[1746631572645,0.99278517,602.48,601.29,3.3486182]
[1746631573249,1.24418026,602.47,601.29,3.3486182]
[1746631573443,1.24418026,602.46,601.29,3.3486182]
[1746631573743,1.24418026,602.45,601.29,3.3486182]
[1746631574046,2.23696543,602.44,601.29,3.3486182]
[1746631574246,1.24418026,602.43,601.29,3.3486182]
[1746631574546,2.23696543,602.42,601.29,3.3486182]
[1746631574739,1.24418026,602.41,601.29,3.3486182]
[1746631574939,2.23696543,602.4,601.29,3.3486182]
[1746631575144,1.24418026,602.39,601.29,3.3486182]
[1746631575343,2.23696543,602.38,601.29,3.3486182]
[1746631575544,1.24418026,602.37,601.29,3.3486182]
[1746631575740,1.24418026,602.36,601.29,3.3486182]
[1746631575943,1.24418026,602.35,601.29,3.3486182]
[1746631576141,2.23696543,602.34,601.29,3.3486182]
[1746631576347,1.24418026,602.33,601.29,3.3486182]
[1746631576543,2.23696543,602.32,601.29,3.3486182]
[1746631576742,1.24418026,602.31,601.29,3.3486182]
[1746631576943,2.23745756,602.3,601.29,3.3486182]
[1746631577141,1.24467239,602.29,601.29,3.3486182]
[1746631577449,2.23745756,602.28,601.29,3.3486182]
[1746631577647,2.23745756,602.27,601.29,3.3486182]
[1746631577847,2.23745756,602.26,601.29,3.3486182]
[1746631578044,1.24467239,602.25,601.29,3.3486182]
[1746631578245,1.24467239,602.24,601.29,3.3486182]
[1746631578445,0.99278517,602.26,601.29,3.3486182]
[1746631578446,1.24467239,602.23,601.29,3.3486182]
[1746631578742,1.24467239,602.22,601.29,3.3486182]
[1746631578941,2.23727042,602.21,601.29,3.3486182]
[1746631579142,1.24448525,602.2,601.29,3.3486182]
[1746631579347,1.24448525,602.19,601.29,3.3486182]
[1746631579546,1.24448525,602.18,601.29,3.3486182]
[1746631579748,1.24448525,602.17,601.29,3.3486182]
[1746631579946,2.23727042,602.16,601.29,3.3486182]
[1746631580141,1.24448525,602.15,601.29,3.3486182]
[1746631580343,1.24448525,602.14,601.29,3.3486182]
[1746631580641,1.24448525,602.13,601.29,3.3486182]
[1746631580843,1.24448525,602.12,601.29,3.3486182]
[1746631581046,1.24448525,602.11,601.29,3.3486182]
[1746631581243,1.24448525,602.1,601.29,3.3486182]
[1746631581546,1.24448525,602.09,601.29,3.3486182]
[1746631581945,0.99278517,602.08,601.29,3.3486182]
[1746631582149,1.24448525,602.07,601.29,3.3486182]
[1746631582449,0.99278517,602.06,601.29,3.3486182]
[1746631582750,2.23727042,602.05,601.29,3.3486182]
[1746631582949,1.24448525,602.04,601.29,3.3486182]
[1746631583146,2.23727042,602.04,601.29,3.3486182]
[1746631583351,1.24448525,602.03,601.29,3.3486182]
[1746631583747,0.99278517,602.02,601.29,3.3486182]
[1746631584353,0.99278517,602.01,601.29,3.3486182]
[1746631584754,0.99278517,602.0,601.29,3.3486182]
[1746631585458,0.99278517,601.99,601.29,3.3486182]
[1746631585951,0.99278517,601.98,601.29,3.3486182]
[1746631586456,0.99278517,601.97,601.29,3.3486182]
[1746631586757,0.99278517,602.5,601.29,3.3486182]
[1746631587158,0.99278517,602.49,601.29,3.3486182]
[1746631587657,0.99278517,602.48,601.29,3.3486182]
[1746631587857,2.23540895,602.47,601.29,3.3486182]
[1746631588057,1.24262378,602.46,601.29,3.3486182]
[1746631588250,0.99278517,602.47,601.29,3.3486182]
[1746631588251,2.23540895,602.45,601.29,3.3486182]
[1746631588453,1.24262378,602.44,601.29,3.3486182]
[1746631588653,1.24262378,602.43,601.29,3.3486182]
[1746631588852,1.24262378,602.42,601.29,3.3486182]
[1746631589153,2.23540895,602.41,601.29,3.3486182]
[1746631589353,1.24262378,602.4,601.29,3.3486182]
[1746631589555,1.24262378,602.39,601.29,3.3486182]
[1746631589756,1.24262378,602.38,601.29,3.3486182]
[1746631589960,1.24262378,602.37,601.29,3.3486182]
[1746631590161,1.24262378,602.36,601.29,3.3486182]
[1746631590360,2.23540895,602.35,601.29,3.3486182]
[1746631590561,1.24262378,602.34,601.29,3.3486182]
[1746631590756,1.24262378,602.33,601.29,3.3486182]
[1746631590959,2.23540895,602.32,601.29,3.3486182]
[1746631591157,1.24262378,602.31,601.29,3.3486182]
[1746631591357,2.23540895,602.3,601.29,3.3486182]
[1746631591563,1.24262378,602.29,601.29,3.3486182]
[1746631591763,1.24262378,602.28,601.29,3.3486182]
[1746631591959,1.24262378,602.27,601.29,3.3486182]
[1746631592164,1.24262378,602.26,601.29,3.3486182]
[1746631592465,2.23540895,602.25,601.29,3.3486182]
[1746631592662,2.23540895,602.24,601.29,3.3486182]
[1746631592863,1.24262378,602.23,601.29,3.3486182]
[1746631593066,2.23530596,602.22,601.29,3.3486182]
[1746631593263,1.24325186,602.21,601.29,3.3486182]
[1746631593566,1.24325186,602.2,601.29,3.3486182]
[1746631593764,2.23603703,602.19,601.29,3.3486182]
[1746631593965,1.24325186,602.18,601.29,3.3486182]
[1746631594161,0.99278517,602.17,601.29,3.3486182]
[1746631594567,0.99278517,602.16,601.29,3.3486182]
[1746631595465,0.99278517,602.15,601.29,3.3486182]
[1746631595765,0.99278517,602.14,601.29,3.3486182]
[1746631596965,0.99278517,602.13,601.29,3.3486182]
[1746631597461,0.99278517,602.12,601.29,3.3486182]
[1746631597766,0.99278517,602.11,601.29,3.3486182]
[1746631598563,0.99278517,602.1,601.29,3.3486182]
[1746631598964,0.99278517,602.09,601.29,3.3486182]
[1746631599467,0.99278517,602.08,601.29,3.3486182]
[1746631599863,0.99278517,602.07,601.29,3.3486182]
[1746631600268,0.99278517,602.06,601.29,3.3486182]
[1746631600467,1.24389248,602.05,601.29,3.3486182]
[1746631600968,0.99278517,602.04,601.29,3.3486182]
[1746631601268,1.24389248,602.03,601.29,3.3486182]
[1746631601468,0.99278517,602.02,601.29,3.3486182]
[1746631601667,1.24389248,602.01,601.29,3.3486182]
[1746631602168,0.99278517,602.0,601.29,3.3486182]
[1746631602369,1.24455786,601.99,601.29,3.3486182]
[1746631602669,0.99278517,601.98,601.29,3.3486182]
[1746631603265,0.99278517,601.97,601.29,3.3486182]
[1746631603771,0.99278517,601.96,601.29,3.3486182]
[1746631604863,0.99278517,601.95,601.29,3.3486182]
[1746631605270,0.99278517,601.94,601.29,3.3486182]
[1746631605469,0.99278517,601.93,601.29,3.3486182]
[1746631606072,0.99278517,601.92,601.29,3.3486182]
[1746631606569,0.99278517,601.91,601.29,3.3486182]
[1746631606969,0.99278517,601.9,601.29,3.3486182]
[1746631607370,0.28916864,602.39,601.29,3.3486182]
[1746631607770,2.23752497,602.38,601.29,3.3486182]
[1746631607971,1.24451487,602.37,601.29,3.3486182]
[1746631608171,1.24451487,602.36,601.29,3.3486182]
[1746631608369,2.23752497,602.35,601.29,3.3486182]
[1746631608569,1.24451487,602.34,601.29,3.3486182]
[1746631608772,1.24451487,602.33,601.29,3.3486182]
[1746631608973,2.23752497,602.32,601.29,3.3486182]
[1746631609174,1.24451487,602.31,601.29,3.3486182]
[1746631609374,2.23752497,602.3,601.29,3.3486182]
[1746631609575,1.24451487,602.29,601.29,3.3486182]
[1746631609774,2.23752497,602.28,601.29,3.3486182]
[1746631610070,1.24451487,602.27,601.29,3.3486182]
[1746631610274,2.23752497,602.26,601.29,3.3486182]
[1746631610577,1.24451487,602.25,601.29,3.3486182]
[1746631610769,2.23752497,602.24,601.29,3.3486182]
[1746631610969,2.23752497,602.23,601.29,3.3486182]
[1746631611171,0.9930101,602.23,601.29,3.3486182]
[1746631611375,1.24548586,602.22,601.29,3.3486182]
[1746631611570,2.23849596,602.21,601.29,3.3486182]
[1746631611771,1.24548586,602.2,601.29,3.3486182]
[1746631611974,2.23849596,602.19,601.29,3.3486182]
[1746631612271,1.24548586,602.18,601.29,3.3486182]
[1746631612474,1.24548586,602.17,601.29,3.3486182]
[1746631612671,1.24548586,602.16,601.29,3.3486182]
[1746631612871,1.24548586,602.15,601.29,3.3486182]
[1746631613070,1.24548586,602.14,601.29,3.3486182]
[1746631613272,1.24548586,602.13,601.29,3.3486182]
[1746631613475,1.24548586,602.12,601.29,3.3486182]
[1746631613675,1.24548586,602.11,601.29,3.3486182]
[1746631613876,1.24548586,602.1,601.29,3.3486182]
[1746631614172,1.24548586,602.09,601.29,3.3486182]
[1746631614378,1.24548586,602.08,601.29,3.3486182]
[1746631614578,2.23849596,602.07,601.29,3.3486182]
[1746631614771,0.9930101,602.07,601.29,3.3486182]
[1746631614971,2.23951139,602.06,601.29,3.3486182]
[1746631615176,2.23951139,602.05,601.29,3.3486182]
[1746631615476,2.23951139,602.04,601.29,3.3486182]
[1746631615676,1.24650129,602.03,601.29,3.3486182]
[1746631615977,1.24650129,602.02,601.29,3.3486182]
[1746631616176,1.24650129,602.01,601.29,3.3486182]
[1746631616375,1.24650129,602.0,601.29,3.3486182]
[1746631616677,1.24650129,601.99,601.29,3.3486182]
[1746631616874,2.23951139,601.98,601.29,3.3486182]
[1746631617174,1.24650129,601.97,601.29,3.3486182]
[1746631617377,1.24650129,601.96,601.29,3.3486182]
[1746631617578,1.2487433,601.95,601.29,3.3486182]
[1746631617778,2.2417534,601.94,601.29,3.3486182]
[1746631617981,1.2487433,601.93,601.29,3.3486182]
[1746631618176,1.2487433,601.92,601.29,3.3486182]
[1746631618476,1.2487433,601.91,601.29,3.3486182]
[1746631618680,1.2487433,601.9,601.29,3.3486182]
[1746631618980,1.2487433,601.89,601.29,3.3486182]
[1746631619181,1.2487433,601.88,601.29,3.3486182]
[1746631619477,2.2417534,601.87,601.29,3.3486182]
[1746631619681,1.2487433,601.86,601.29,3.3486182]
[1746631619981,2.2417534,601.85,601.29,3.3486182]
[1746631620181,2.2417534,601.84,601.29,3.3486182]
[1746631620382,1.25046053,601.83,601.29,2.5986182]
[1746631620576,2.24347063,601.82,601.29,0.3326182]
[1746631620780,1.25046053,601.81,601.29,0.3326182]
[1746631620977,0.9930101,601.8,601.29,0.3326182]
[1746631621183,0.9930101,601.79,601.29,0.3326182]
[1746631621681,0.9930101,601.78,601.29,0.3326182]
[1746631621882,0.9930101,601.77,601.29,0.3326182]
[1746631622283,0.9930101,601.76,601.29,0.3326182]
[1746631622584,0.9930101,601.75,601.29,0.3326182]
[1746631622885,0.9930101,601.74,601.29,0.3326182]
[1746631623085,0.28918306,602.38,601.29,0.3326182]
[1746631623285,1.25030712,602.37,601.29,0.3326182]
[1746631623488,1.25030712,602.36,601.29,0.3326182]
[1746631623681,1.25030712,602.35,601.29,0.3326182]
[1746631623884,2.24797235,602.34,601.29,0.3326182]
[1746631624182,2.24797235,602.33,601.29,1.3026182]
[1746631624486,2.24797235,602.32,601.29,1.3026182]
[1746631624682,2.24797235,602.31,601.29,2.2916182]
[1746631624882,2.24797235,602.3,601.29,2.2916182]
[1746631625082,1.25030712,602.29,601.29,2.2916182]
[1746631625282,1.25030712,602.28,601.29,2.2916182]
[1746631625486,2.24797235,602.27,601.29,2.2916182]
[1746631625688,1.2502735,602.26,601.29,2.2916182]
[1746631625888,2.24793873,602.25,601.29,2.2916182]
[1746631626089,2.24793873,602.24,601.29,2.2916182]
[1746631626287,1.2502735,602.23,601.29,2.2916182]
[1746631626587,2.24793873,602.22,601.29,2.2916182]
[1746631626887,2.24793873,602.21,601.29,2.2916182]
[1746631627088,0.99766523,602.21,601.29,2.2916182]
[1746631627289,2.24789865,602.2,601.29,2.2916182]
[1746631627588,2.24789865,602.19,601.29,2.2916182]
[1746631627789,1.25023342,602.18,601.29,1.3216182]
[1746631627989,2.24789865,602.17,601.29,1.3216182]
[1746631628188,2.24789865,602.16,601.29,1.3216182]
[1746631628489,0.99766523,602.15,601.29,0.3326182]
[1746631628788,2.2480662,602.14,601.29,0.3326182]
[1746631628988,2.2480662,602.13,601.29,0.3326182]
[1746631629187,2.2480662,602.12,601.29,0.3326182]
[1746631629385,1.25040097,602.11,601.29,0.3326182]
[1746631629588,1.25040097,602.1,601.29,0.3326182]
[1746631629888,0.99766523,602.12,601.29,0.3326182]
[1746631629889,1.25040097,602.09,601.29,0.3326182]
[1746631630188,0.28913741,602.43,601.29,0.3326182]
[1746631630583,0.99775893,602.09,601.29,0.3326182]
[1746631630788,1.25045709,602.08,601.29,0.3326182]
[1746631631088,1.25045709,602.07,601.29,0.3326182]
[1746631631288,1.25045709,602.06,601.29,0.3326182]
[1746631631488,1.25045709,602.05,601.29,0.3326182]
[1746631631686,1.25045709,602.04,601.29,0.3326182]
[1746631631885,1.25045709,602.03,601.29,0.3326182]
[1746631632085,1.25045709,602.02,601.29,0.3326182]
[1746631632284,2.24821602,602.01,601.29,0.3326182]
[1746631632589,1.25045709,602.0,601.29,0.3326182]
[1746631632792,2.24821602,601.99,601.29,0.3326182]
[1746631632990,1.25045709,601.98,601.29,0.3326182]
[1746631633186,1.25045709,601.97,601.29,0.3326182]
[1746631633490,0.99775893,601.98,601.29,0.3326182]
[1746631633691,0.99775893,601.97,601.29,0.3326182]
[1746631634394,2.24772868,601.96,601.29,0.3326182]
[1746631634587,1.24996975,601.95,601.29,0.3326182]
[1746631634787,1.24996975,601.94,601.29,0.3326182]
[1746631634988,1.24996975,601.93,601.29,0.3326182]
[1746631635289,2.24772868,601.92,601.29,0.3326182]
[1746631635489,0.99775893,601.91,601.29,0.3326182]
[1746631636189,0.99775893,601.9,601.29,0.3326182]
[1746631636391,0.99775893,601.89,601.29,0.3326182]
[1746631636791,0.99775893,601.88,601.29,0.3326182]
[1746631637294,0.99775893,601.87,601.29,0.3326182]
[1746631637693,0.99775893,601.86,601.29,0.3326182]
[1746631637894,0.99775893,601.85,601.29,0.3326182]
[1746631638290,0.99775893,601.84,601.29,0.3326182]
[1746631638493,0.99775893,601.83,601.29,0.3326182]
[1746631638694,0.99775893,601.82,601.29,0.3326182]
[1746631638895,0.99679739,601.81,601.29,0.3326182]
[1746631639092,0.99679739,601.8,601.29,0.3326182]
[1746631639499,0.99679739,601.79,601.29,0.3326182]
[1746631639797,0.99679739,601.78,601.29,0.3326182]
[1746631639997,0.99679739,601.77,601.29,0.3326182]
[1746631640296,0.99679739,601.76,601.29,0.3326182]
[1746631640698,0.99679739,601.75,601.29,0.3326182]
[1746631640993,0.99677435,601.74,601.29,0.3326182]
[1746631641198,0.99675736,601.73,601.29,0.3326182]
[1746631641394,0.33169696,602.96,601.29,0.3326182]
[1746631641698,0.28918426,602.43,601.29,1.9346182]
[1746631641902,1.302029,602.95,601.29,1.9346182]
[1746631642103,0.99676915,602.42,601.29,1.9346182]
[1746631642505,0.99676915,602.41,601.29,1.9346182]
[1746631642803,1.30202518,602.4,601.29,1.9346182]
[1746631643103,0.99676915,602.39,601.29,1.9346182]
[1746631643303,0.99676915,602.38,601.29,1.9346182]
[1746631643505,1.25233913,602.37,601.29,1.9346182]
[1746631643803,1.25233913,602.36,601.29,1.9346182]
[1746631643999,2.24910828,602.35,601.29,1.9346182]
[1746631644204,1.25233913,602.34,601.29,1.9346182]
[1746631644404,1.25233913,602.33,601.29,1.9346182]
[1746631644605,2.24910828,602.32,601.29,1.9346182]
[1746631644805,1.25233913,602.31,601.29,1.9346182]
[1746631645007,2.24910828,602.3,601.29,1.9346182]
[1746631645205,1.25233913,602.29,601.29,1.9346182]
[1746631645500,2.24910828,602.28,601.29,1.9346182]
[1746631645701,1.25233913,602.27,601.29,1.2266182]
[1746631645902,1.25233913,602.26,601.29,1.2266182]
[1746631646101,2.24910828,602.25,601.29,1.2266182]
[1746631646406,1.25233913,602.24,601.29,1.2266182]
[1746631646605,2.24910828,602.23,601.29,1.2266182]
[1746631646905,1.25326624,602.22,601.29,1.2266182]
[1746631647100,2.25003539,602.21,601.29,1.2266182]
[1746631647307,1.25326624,602.2,601.29,0.3326182]
[1746631647506,2.25003539,602.19,601.29,0.3326182]
[1746631647703,1.25326624,602.18,601.29,0.3326182]
[1746631647902,1.25333938,602.17,601.29,0.3326182]
[1746631648202,1.25333938,602.16,601.29,0.3326182]
[1746631648404,2.25010853,602.15,601.29,0.3326182]
[1746631648605,1.25333938,602.14,601.29,0.3326182]
[1746631648806,1.25333938,602.13,601.29,0.3326182]
[1746631649102,2.25010853,602.12,601.29,0.3326182]
[1746631649303,1.25333938,602.11,601.29,0.3326182]
[1746631649504,2.25010853,602.1,601.29,0.3326182]
[1746631649708,1.25333938,602.09,601.29,0.3326182]
[1746631649907,1.25333938,602.08,601.29,0.3326182]
[1746631650106,1.25333938,602.07,601.29,0.3326182]
[1746631650307,1.25333938,602.06,601.29,0.3326182]
[1746631650503,2.25010853,602.05,601.29,0.3326182]
[1746631650706,1.25333938,602.04,601.29,0.3326182]
[1746631650903,0.28913861,602.38,601.29,0.3326182]
[1746631650904,2.25010853,602.03,601.29,0.3326182]
[1746631651110,1.25333938,602.02,601.29,0.3326182]
[1746631651409,2.25010853,602.01,601.29,0.3326182]
[1746631651705,1.25306959,602.0,601.29,0.3326182]
[1746631651908,1.25306959,601.99,601.29,0.3326182]
[1746631652208,1.25306959,601.98,601.29,0.3326182]
[1746631652405,1.25306959,601.97,601.29,0.3326182]
[1746631652605,1.25306959,601.96,601.29,0.3326182]
[1746631652808,1.25306959,601.95,601.29,0.3326182]
[1746631653009,2.24983874,601.94,601.29,0.3326182]
[1746631653209,1.25306959,601.93,601.29,0.3326182]
[1746631653510,1.25224723,601.92,601.29,0.3326182]
[1746631653810,1.25224723,601.91,601.29,0.3326182]